bitfinex-derivatives/quotes_BTCF0:USTF0_20250506
["timestamp","ask_amount","ask_price","bid_price","bid_amount"]
[1746509118090,0.2118557,94418.0,94417.0,0.2118578]
[1746509118291,0.6366957,94418.0,94417.0,0.2118578]
[1746509118902,0.2118939,94401.0,94400.0,0.26187447]
[1746509119100,0.5726939,94401.0,94400.0,0.26187447]
[1746509119401,0.5726939,94401.0,94400.0,0.1]
[1746509120208,0.5726939,94401.0,94400.0,0.4298961]
[1746509120702,0.5726939,94401.0,94400.0,0.4648961]
[1746509121505,0.5726939,94401.0,94400.0,0.4688961]
[1746509123993,0.6040939,94401.0,94400.0,0.4688961]
[1746509129601,0.2118939,94401.0,94400.0,0.4688961]
[1746509134008,0.0529651,94416.0,94400.0,0.277]
[1746509134211,0.2425791,94408.0,94406.0,0.2118827]
[1746509134413,0.5726804,94407.0,94406.0,0.2118827]
[1746509134715,0.3608,94407.0,94406.0,0.2118827]
[1746509135114,0.3608,94431.0,94417.0,0.0529641]
[1746509135310,0.0307,94429.0,94428.0,0.2118333]
[1746509135614,0.2425311,94429.0,94428.0,0.2118333]
[1746509136112,0.2425311,94429.0,94428.0,0.2735333]
[1746509136301,0.2425311,94429.0,94428.0,0.3915333]
[1746509137608,0.2465311,94429.0,94428.0,0.3915333]
[1746509138115,0.0347,94429.0,94428.0,0.3915333]
[1746509138415,0.2465311,94429.0,94428.0,0.3915333]
[1746509139815,0.2465311,94429.0,94428.0,0.3298333]
[1746509140212,0.2465311,94429.0,94428.0,0.2118333]
[1746509142116,0.2465311,94429.0,94428.0,0.3298333]
[1746509143116,0.2465311,94429.0,94428.0,0.2118333]
[1746509144121,0.2465311,94429.0,94428.0,0.3298333]
[1746509144320,0.2465311,94429.0,94428.0,0.3629333]
[1746509148423,0.2465311,94429.0,94428.0,0.3298333]
[1746509150918,0.2445311,94429.0,94428.0,0.3298333]
[1746509151119,0.2475311,94429.0,94428.0,0.3298333]
[1746509151719,0.2455311,94429.0,94428.0,0.3298333]
[1746509152023,0.2475311,94429.0,94428.0,0.3298333]
[1746509153126,0.2465311,94429.0,94428.0,0.3298333]
[1746509157532,0.6073311,94429.0,94428.0,0.3298333]
[1746509164337,0.2465311,94429.0,94428.0,0.3298333]
[1746509164532,0.6073311,94429.0,94428.0,0.3298333]
[1746509166233,0.2465311,94429.0,94428.0,0.3298333]
[1746509166436,0.6073311,94429.0,94428.0,0.3298333]
[1746509167827,0.6073311,94429.0,94428.0,0.3623333]
[1746509168229,0.2465311,94429.0,94428.0,0.3623333]
[1746509168527,0.6073311,94429.0,94428.0,0.3623333]
[1746509169233,0.2465311,94429.0,94428.0,0.3623333]
[1746509169441,0.6073311,94429.0,94428.0,0.3623333]
[1746509179262,0.3955,94429.0,94428.0,0.3623333]
[1746509179552,0.004,94429.0,94428.0,0.3623333]
[1746509179755,0.37397145,94434.0,94433.0,0.2118221]
[1746509179967,0.0015,94450.0,94438.0,0.0529524]
[1746509180146,0.0015,94450.0,94445.0,0.2117952]
[1746509180959,0.0015,94450.0,94445.0,0.2742952]
[1746509181155,0.005,94446.0,94445.0,0.3922952]
[1746509181855,0.007,94446.0,94445.0,0.3922952]
[1746509182564,0.01,94446.0,94445.0,0.3922952]
[1746509183259,0.011,94446.0,94445.0,0.3922952]
[1746509184264,0.011,94446.0,94445.0,0.39858125]
[1746509189967,0.007,94446.0,94445.0,0.39858125]
[1746509190267,0.001,94446.0,94445.0,0.39858125]
[1746509193067,0.2127929,94446.0,94445.0,0.12428605]
[1746509193270,0.2127929,94446.0,94445.0,0.33608125]
[1746509193658,0.2764929,94446.0,94445.0,0.33608125]
[1746509195971,0.2784929,94446.0,94445.0,0.33608125]
[1746509225878,0.2784929,94446.0,94445.0,0.36808125]
[1746509227483,0.6392929,94446.0,94445.0,0.36808125]
[1746509228991,0.2784929,94446.0,94445.0,0.36808125]
[1746509229184,0.6392929,94446.0,94445.0,0.36808125]
[1746509230683,0.64074817,94446.0,94445.0,0.36808125]
[1746509231479,0.27994817,94446.0,94445.0,0.36808125]
[1746509231786,0.64074817,94446.0,94445.0,0.36808125]
[1746509233085,0.27994817,94446.0,94445.0,0.36808125]
[1746509233276,0.64074817,94446.0,94445.0,0.36808125]
[1746509242783,0.60924817,94446.0,94445.0,0.36808125]
[1746509246097,0.60924817,94446.0,94445.0,0.40078125]
[1746509259326,0.60924817,94446.0,94445.0,0.36808125]
[1746509263326,0.64054817,94446.0,94445.0,0.36808125]
[1746509265932,0.21624817,94446.0,94445.0,0.36808125]
[1746509266829,0.21624817,94446.0,94445.0,0.40048125]
[1746509268534,0.00445527,94446.0,94445.0,0.40048125]
[1746509269734,0.00345527,94446.0,94445.0,0.40048125]
[1746509270129,0.00245527,94446.0,94445.0,0.40048125]
[1746509277734,0.03375527,94446.0,94445.0,0.40048125]
[1746509278636,0.24554817,94446.0,94445.0,0.40048125]
[1746509279437,0.03375527,94446.0,94445.0,0.40048125]
[1746509280439,0.06585527,94446.0,94445.0,0.40048125]
[1746509287435,0.09775527,94446.0,94445.0,0.40048125]
[1746509290943,0.30954817,94446.0,94445.0,0.40048125]
[1746509294836,0.09775527,94446.0,94445.0,0.40048125]
[1746509307146,0.03375527,94446.0,94445.0,0.40048125]
[1746509319657,0.03375527,94446.0,94445.0,0.36848125]
[1746509336078,0.28375527,94446.0,94421.0,0.4185618]
[1746509336279,0.0529564,94432.0,94430.0,0.264781]
[1746509336481,0.094,94431.0,94430.0,0.264781]
[1746509336875,0.09545527,94431.0,94430.0,0.264781]
[1746509337074,0.30728187,94431.0,94430.0,0.382781]
[1746509337885,0.09545527,94431.0,94430.0,0.382781]
[1746509338688,0.30728187,94431.0,94430.0,0.382781]
[1746509345492,0.30728187,94431.0,94430.0,0.415181]
[1746509346291,0.30728187,94431.0,94430.0,0.382781]
[1746509346891,0.30728187,94431.0,94430.0,0.3298243]
[1746509348287,0.30728187,94431.0,94430.0,0.2118243]
[1746509350099,0.30928187,94431.0,94430.0,0.2118243]
[1746509362904,0.67008187,94431.0,94430.0,0.2118243]
[1746509363504,0.45825527,94431.0,94423.0,0.21964836]
[1746509363802,0.05441457,94427.0,94424.0,0.2448412]
[1746509364002,0.21184,94425.0,94424.0,0.2448412]
[1746509364303,0.21184,94425.0,94424.0,0.3628412]
[1746509364501,0.27564,94425.0,94424.0,0.3628412]
[1746509364904,0.27709527,94425.0,94424.0,0.3628412]
[1746509365294,0.27709527,94425.0,94424.0,0.3638412]
[1746509366904,0.27709527,94425.0,94424.0,0.3628412]
[1746509366905,0.27809527,94425.0,94424.0,0.3628412]
[1746509367405,0.27909527,94425.0,94424.0,0.3628412]
[1746509368401,0.63989527,94425.0,94424.0,0.3628412]
[1746509369498,0.27909527,94425.0,94424.0,0.3628412]
[1746509369704,0.63989527,94425.0,94424.0,0.3628412]
[1746509375206,0.63989527,94425.0,94424.0,0.118]
[1746509376196,0.2118445,94423.0,94422.0,0.0306]
[1746509376502,0.2118445,94423.0,94422.0,0.2424468]
[1746509376908,0.21329977,94423.0,94422.0,0.2424468]
[1746509377203,0.21329977,94423.0,94422.0,0.25098723]
[1746509378202,0.27699977,94423.0,94422.0,0.25098723]
[1746509384109,0.63779977,94423.0,94422.0,0.25098723]
[1746509385110,0.63779977,94423.0,94422.0,0.36898723]
[1746509385812,0.60479977,94423.0,94422.0,0.36898723]
[1746509388607,0.63589977,94423.0,94422.0,0.36898723]
[1746509391411,0.27509977,94423.0,94422.0,0.36898723]
[1746509391616,0.63589977,94423.0,94422.0,0.36898723]
[1746509398615,0.69965977,94423.0,94422.0,0.36898723]
[1746509399415,0.33885977,94423.0,94422.0,0.36898723]
[1746509399623,0.69965977,94423.0,94422.0,0.36898723]
[1746509405213,0.45671527,94423.0,94422.0,0.36898723]
[1746509405412,0.45671527,94423.0,94422.0,0.39928723]
[1746509406520,0.66855977,94423.0,94422.0,0.36898723]
[1746509412017,0.60479977,94423.0,94422.0,0.36898723]
[1746509412223,0.36225527,94423.0,94422.0,0.40228723]
[1746509412622,0.57409977,94423.0,94422.0,0.40228723]
[1746509412816,0.60559977,94423.0,94422.0,0.40228723]
[1746509423429,0.39375527,94423.0,94422.0,0.40228723]
[1746509424827,0.00145527,94423.0,94422.0,0.40228723]
[1746509426819,0.21329977,94423.0,94422.0,0.36898723]
[1746509429227,0.30919977,94423.0,94422.0,0.36898723]
[1746509429427,0.09735527,94423.0,94422.0,0.36898723]
[1746509467359,0.30919977,94423.0,94422.0,0.36898723]
[1746509474665,0.09735527,94423.0,94422.0,0.36898723]
[1746509479588,0.30919977,94423.0,94422.0,0.36898723]
[1746509481081,0.09735527,94423.0,94422.0,0.36898723]
[1746509484588,0.00145527,94423.0,94422.0,0.36898723]
[1746509484779,0.00145527,94423.0,94422.0,0.39978723]
[1746509488689,0.00145527,94423.0,94422.0,0.40278723]
[1746509488892,0.00145527,94423.0,94422.0,0.40478723]
[1746509493995,0.00145527,94423.0,94422.0,0.37398723]
[1746509494198,0.03165527,94423.0,94422.0,0.37398723]
[1746509495291,0.24349977,94423.0,94422.0,0.37398723]
[1746509495497,0.24349977,94423.0,94422.0,0.37298723]
[1746509496801,0.03165527,94423.0,94422.0,0.36998723]
[1746509497098,0.24349977,94423.0,94422.0,0.37098723]
[1746509497590,0.24349977,94423.0,94422.0,0.36898723]
[1746509497795,0.24349977,94423.0,94422.0,0.36998723]
[1746509498697,0.24349977,94423.0,94422.0,0.33938723]
[1746509499899,0.24349977,94423.0,94422.0,0.33838723]
[1746509500102,0.24349977,94423.0,94422.0,0.33938723]
[1746509519709,0.60429977,94423.0,94422.0,0.119]
[1746509519913,0.2118939,94401.0,94400.0,0.47377057]
[1746509520209,0.5726939,94401.0,94400.0,0.27591707]
[1746509520799,0.5726939,94401.0,94400.0,0.1140426]
[1746509520999,0.57414917,94401.0,94400.0,0.3259387]
[1746509521210,0.60414917,94401.0,94400.0,0.3319387]
[1746509522111,0.60414917,94401.0,94400.0,0.3369387]
[1746509522519,0.60414917,94401.0,94400.0,0.111]
[1746509523105,0.0529743,94400.0,94395.0,0.21555818]
[1746509523310,0.2119051,94396.0,94395.0,0.21555818]
[1746509523503,0.2119051,94396.0,94395.0,0.16555818]
[1746509523703,0.4619051,94396.0,94395.0,0.16555818]
[1746509524003,0.56929637,94396.0,94395.0,0.16555818]
[1746509524206,0.68729637,94396.0,94395.0,0.16555818]
[1746509524513,0.68729637,94396.0,94395.0,0.16955818]
[1746509524813,0.68729637,94396.0,94395.0,0.004]
[1746509525004,0.2119276,94386.0,94383.0,0.17597497]
[1746509525204,0.6324076,94386.0,94383.0,0.17597497]
[1746509525411,0.7383556,94386.0,94383.0,0.17597497]
[1746509525610,0.7383556,94386.0,94384.0,0.2119303]
[1746509525913,0.8015556,94386.0,94383.0,0.17597497]
[1746509526111,0.80301087,94386.0,94383.0,0.17597497]
[1746509526412,0.80401087,94386.0,94385.0,0.00605948]
[1746509527915,0.80401087,94386.0,94385.0,0.21798928]
[1746509528413,0.80301087,94386.0,94385.0,0.21798928]
[1746509528914,0.80301087,94386.0,94385.0,0.22098928]
[1746509529310,0.80301087,94386.0,94385.0,0.00905948]
[1746509532910,0.59608327,94386.0,94365.0,0.2433729]
[1746509533115,0.5727702,94367.0,94366.0,0.2751725]
[1746509534114,0.60622547,94367.0,94366.0,0.3931725]
[1746509535812,0.60722547,94367.0,94366.0,0.3991725]
[1746509536116,0.60822547,94367.0,94366.0,0.4061725]
[1746509539622,0.57622547,94367.0,94366.0,0.4061725]
[1746509540328,0.60882547,94367.0,94366.0,0.4061725]
[1746509545729,0.60882547,94367.0,94366.0,0.1942]
[1746509545925,0.60882547,94367.0,94366.0,0.1626]
[1746509545926,0.63922547,94367.0,94366.0,0.1626]
[1746509546127,0.63922547,94367.0,94366.0,0.0446]
[1746509547031,0.63922547,94367.0,94366.0,0.2565725]
[1746509547332,0.63922547,94367.0,94366.0,0.3745725]
[1746509547528,0.63922547,94367.0,94366.0,0.4053725]
[1746509552835,0.60882547,94367.0,94366.0,0.4053725]
[1746509553031,0.63942547,94367.0,94366.0,0.4053725]
[1746509563640,0.63942547,94367.0,94366.0,0.3745725]
[1746509567756,0.63942547,94367.0,94366.0,0.4058725]
[1746509570053,0.00345527,94367.0,94366.0,0.4058725]
[1746509570359,0.21542547,94367.0,94366.0,0.4361725]
[1746509572259,0.00345527,94367.0,94366.0,0.4361725]
[1746509572458,0.21542547,94367.0,94366.0,0.4361725]
[1746509584257,0.21542547,94367.0,94366.0,0.4058725]
[1746509585964,0.00345527,94367.0,94366.0,0.4058725]
[1746509586167,0.00345527,94367.0,94366.0,0.4382725]
[1746509586667,0.00345527,94367.0,94366.0,1.9382725]
[1746509587567,0.3608,94382.0,94381.0,0.2119388]
[1746509587762,0.5727366,94382.0,94381.0,0.2119388]
[1746509588166,0.5727366,94382.0,94381.0,0.3299388]
[1746509588362,0.5727366,94382.0,94381.0,0.3921388]
[1746509588970,0.5727366,94382.0,94381.0,0.3951388]
[1746509590363,0.5737366,94382.0,94381.0,0.3981388]
[1746509592480,0.3618,94382.0,94381.0,0.3981388]
[1746509594780,0.001,94382.0,94381.0,0.3981388]
[1746509595983,0.001,94382.0,94381.0,1.8981388]
[1746509614200,0.067,94382.0,94381.0,1.8981388]
[1746509615299,0.06682922,94382.0,94381.0,1.8981388]
[1746509618302,0.27876572,94382.0,94381.0,0.124]
[1746509618501,0.63956572,94382.0,94381.0,0.124]
[1746509620205,0.63956572,94382.0,94381.0,0.3359388]
[1746509620701,0.63956572,94382.0,94381.0,0.124]
[1746509621204,1.17727772,94382.0,94381.0,0.006]
[1746509621806,0.92727772,94382.0,94381.0,0.006]
[1746509622103,0.80927772,94382.0,94381.0,0.006]
[1746509623209,0.80927772,94382.0,94381.0,0.2179388]
[1746509626307,0.80927772,94382.0,94381.0,0.006]
[1746509626615,0.80927772,94382.0,94381.0,0.2179388]
[1746509627008,0.70332572,94382.0,94381.0,0.2179388]
[1746509627314,0.70332572,94382.0,94381.0,0.006]
[1746509632217,0.70332572,94382.0,94381.0,0.124]
[1746509633317,0.70332572,94382.0,94381.0,0.006]
[1746509635122,0.70332572,94382.0,94381.0,0.124]
[1746509636113,0.70332572,94382.0,94381.0,0.006]
[1746509637122,0.70332572,94382.0,94381.0,0.124]
[1746509645929,0.70332572,94382.0,94381.0,0.1564]
[1746509647730,0.34252572,94382.0,94381.0,0.1564]
[1746509647931,0.70332572,94382.0,94381.0,0.1564]
[1746509651133,0.63956572,94382.0,94381.0,0.1564]
[1746509651324,0.70348572,94382.0,94381.0,0.1564]
[1746509655342,0.70348572,94382.0,94381.0,0.1882]
[1746509657242,0.34268572,94382.0,94381.0,0.1882]
[1746509657536,0.70348572,94382.0,94381.0,0.1882]
[1746509658546,0.70348572,94382.0,94381.0,0.1564]
[1746509662748,0.63956572,94382.0,94381.0,0.1564]
[1746509662947,0.70348572,94382.0,94381.0,0.1564]
[1746509666647,0.63956572,94382.0,94381.0,0.1564]
[1746509666847,0.63748572,94382.0,94381.0,0.1564]
[1746509667048,0.67018572,94382.0,94381.0,0.1564]
[1746509667249,0.67018572,94382.0,94381.0,0.1876]
[1746509668252,0.67018572,94382.0,94381.0,0.3995388]
[1746509669853,0.30938572,94382.0,94381.0,0.3995388]
[1746509670154,0.67018572,94382.0,94381.0,0.3995388]
[1746509670349,0.67018572,94382.0,94381.0,0.1876]
[1746509675057,0.70198572,94382.0,94381.0,0.1876]
[1746509682458,0.70198572,94382.0,94381.0,0.1564]
[1746509685065,0.63806572,94382.0,94381.0,0.1564]
[1746509685262,0.70222572,94382.0,94381.0,0.1564]
[1746509690569,1.06302572,94382.0,94381.0,0.1564]
[1746509692966,1.06302572,94382.0,94381.0,0.3683388]
[1746509693169,0.00082922,94382.0,94381.0,0.6183388]
[1746509693669,0.00082922,94382.0,94381.0,2.1183388]
[1746509693975,0.00082922,94382.0,94381.0,2.1493388]
[1746509695070,0.00082922,94382.0,94381.0,2.2552908]
[1746509695266,0.00082922,94382.0,94381.0,2.0052908]
[1746509700171,0.00082922,94382.0,94381.0,1.8993388]
[1746509700373,0.00082922,94382.0,94381.0,2.0052908]
[1746509703675,0.00082922,94382.0,94381.0,1.8993388]
[1746509703876,0.00082922,94382.0,94381.0,2.0052908]
[1746509704673,0.21276572,94382.0,94381.0,2.0052908]
[1746509704978,0.57356572,94382.0,94381.0,0.3683388]
[1746509706074,0.60456572,94382.0,94381.0,0.3683388]
[1746509706867,0.21276572,94382.0,94381.0,0.3683388]
[1746509707574,0.00082922,94382.0,94381.0,0.3683388]
[1746509707880,0.21276572,94382.0,94381.0,0.3683388]
[1746509708979,0.00082922,94382.0,94381.0,0.3683388]
[1746509709487,0.00082922,94382.0,94381.0,0.4742908]
[1746509713172,0.00082922,94382.0,94381.0,0.3683388]
[1746509729486,0.00082922,94382.0,94381.0,0.3359388]
[1746509730492,0.06582922,94382.0,94381.0,0.3359388]
[1746509744407,0.06582922,94382.0,94381.0,0.3674388]
[1746509749424,0.03272922,94382.0,94381.0,0.3674388]
[1746509749623,0.03272922,94382.0,94381.0,0.3992388]
[1746509766537,0.03272922,94382.0,94381.0,0.3674388]
[1746509778834,0.3608,94421.0,94408.0,0.2118782]
[1746509779036,0.0307,94414.0,94413.0,0.211867]
[1746509779741,0.0307,94414.0,94413.0,0.24446573]
[1746509780243,0.0629,94414.0,94413.0,0.36246573]
[1746509781733,0.0669,94414.0,94413.0,0.36346573]
[1746509781932,0.0973,94414.0,94413.0,0.36346573]
[1746509782744,0.1013,94414.0,94413.0,0.36346573]
[1746509788041,0.3131647,94414.0,94413.0,0.15159873]
[1746509788345,0.3131647,94414.0,94413.0,0.36346573]
[1746509789149,0.3131647,94414.0,94413.0,0.24546573]
[1746509789750,0.0529674,94412.0,94381.0,0.3608]
[1746509790051,0.06599355,94391.0,94390.0,0.2648978]
[1746509790245,0.2119118,94393.0,94392.0,0.2648877]
[1746509790543,0.0945,94394.0,94393.0,0.2119118]
[1746509790751,0.3064096,94394.0,94393.0,0.2119118]
[1746509792043,0.3064096,94394.0,94393.0,0.2129118]
[1746509792934,0.3064096,94394.0,94393.0,0.2139118]
[1746509796055,0.3064096,94394.0,94393.0,0.2447118]
[1746509796242,0.3064096,94394.0,94393.0,0.3627118]
[1746509798043,0.3064096,94394.0,94393.0,0.3952118]
[1746509801348,0.3064096,94394.0,94393.0,0.2772118]
[1746509801951,0.0636,94394.0,94393.0,0.2772118]
[1746509802248,0.0305,94394.0,94393.0,0.4282118]
[1746509804247,0.0311,94397.0,94396.0,0.2119051]
[1746509804959,0.0311,94397.0,94396.0,0.2426051]
[1746509805151,0.0311,94397.0,94396.0,0.3606051]
[1746509805853,0.0321,94397.0,94396.0,0.3606051]
[1746509807943,0.2440029,94397.0,94396.0,0.3606051]
[1746509810056,0.0321,94397.0,94396.0,0.3606051]
[1746509811859,0.2440029,94397.0,94396.0,0.3606051]
[1746509813359,0.0321,94397.0,94396.0,0.3606051]
[1746509814958,0.001,94397.0,94396.0,0.3606051]
[1746509815651,0.0318,94410.0,94409.0,0.2118759]
[1746509816358,0.0318,94410.0,94409.0,0.3931759]
[1746509816759,0.0358,94410.0,94409.0,0.3941759]
[1746509817661,0.0388,94410.0,94409.0,0.3941759]
[1746509822455,0.0707,94410.0,94409.0,0.3941759]
[1746509842584,0.0388,94410.0,94409.0,0.3941759]
[1746509844290,0.007,94410.0,94409.0,0.3941759]
[1746509844478,0.007,94410.0,94409.0,0.7549759]
[1746509845283,0.007,94410.0,94409.0,2.2549759]
[1746509878212,0.0602,94413.0,94412.0,0.2118692]
[1746509878911,0.0602,94413.0,94412.0,1.7118692]
[1746509879108,0.0602,94413.0,94412.0,1.8298692]
[1746509879811,0.0632,94413.0,94412.0,1.8298692]
[1746509880308,0.0602,94413.0,94412.0,1.8298692]
[1746509880507,0.0632,94413.0,94412.0,1.8298692]
[1746509881112,0.0662,94413.0,94412.0,1.8308692]
[1746509887510,0.0662,94413.0,94412.0,0.119]
[1746509887511,0.278067,94413.0,94412.0,0.119]
[1746509888316,0.278067,94413.0,94412.0,0.2128692]
[1746509891115,0.0662,94413.0,94412.0,0.2128692]
[1746509892115,0.0662,94413.0,94412.0,0.3308692]
[1746509895722,0.278067,94413.0,94412.0,0.3308692]
[1746509899121,0.0662,94413.0,94412.0,0.3308692]
[1746509901826,0.278067,94413.0,94412.0,0.3308692]
[1746509903224,0.278067,94413.0,94412.0,0.2128692]
[1746509904726,0.278067,94413.0,94412.0,0.001]
[1746509907126,0.278067,94413.0,94412.0,0.2128692]
[1746509914736,0.278067,94413.0,94412.0,0.001]
[1746509915840,0.278067,94413.0,94412.0,0.0335]
[1746509916635,0.278067,94413.0,94412.0,0.2453692]
[1746509917137,0.278067,94413.0,94412.0,0.3633692]
[1746509918136,0.278067,94413.0,94412.0,0.2453692]
[1746509919232,0.278067,94413.0,94412.0,0.3633692]
[1746509919634,0.638867,94413.0,94412.0,0.3633692]
[1746509924739,0.608867,94413.0,94412.0,0.3633692]
[1746509925737,0.248067,94413.0,94412.0,0.3633692]
[1746509925932,0.608867,94413.0,94412.0,0.3633692]
[1746509927637,0.3668,94413.0,94412.0,0.3633692]
[1746509927844,0.006,94413.0,94412.0,0.3633692]
[1746509928341,0.006,94413.0,94412.0,0.6133692]
[1746509928733,0.006,94413.0,94412.0,0.3633692]
[1746509931235,0.0015,94415.0,94414.0,0.2118647]
[1746509931845,0.0015,94415.0,94414.0,0.2434647]
[1746509932245,0.0055,94415.0,94414.0,0.3624647]
[1746509932743,0.0085,94415.0,94414.0,0.3624647]
[1746509933046,0.0085,94415.0,94414.0,0.4683807]
[1746509933743,0.0085,94415.0,94414.0,1.9683807]
[1746509935046,0.0085,94415.0,94414.0,1.8624647]
[1746509935439,0.0085,94415.0,94414.0,2.2232647]
[1746509940446,0.0085,94415.0,94414.0,1.8624647]
[1746509940650,0.0085,94415.0,94414.0,2.2232647]
[1746509941851,0.211822,94434.0,94416.0,0.0529645]
[1746509942051,0.0529536,94437.0,94431.0,0.2118266]
[1746509942052,0.0324,94432.0,94431.0,0.2118266]
[1746509942346,0.2442243,94432.0,94431.0,0.2118266]
[1746509943149,0.2442243,94432.0,94431.0,0.3298266]
[1746509943540,0.2492243,94432.0,94431.0,0.3298266]
[1746509944551,0.2492243,94432.0,94431.0,0.35374564]
[1746509945352,0.2532243,94432.0,94431.0,0.35374564]
[1746509961764,0.2512243,94432.0,94431.0,0.35374564]
[1746509962267,0.2442243,94432.0,94431.0,0.35374564]
[1746509962566,0.2482243,94432.0,94431.0,0.35374564]
[1746509962769,0.2462243,94432.0,94431.0,0.35374564]
[1746509962969,0.2482243,94432.0,94431.0,0.35374564]
[1746509967274,0.2482243,94432.0,94431.0,0.14191904]
[1746509967579,0.211867,94413.0,94412.0,0.16196814]
[1746509967780,0.572667,94413.0,94412.0,0.42679524]
[1746509968184,0.572667,94413.0,94412.0,0.3828271]
[1746509969074,0.572667,94413.0,94412.0,0.3848271]
[1746509969676,0.572667,94413.0,94412.0,0.3868271]
[1746509970080,0.572667,94413.0,94412.0,0.3848271]
[1746509970478,0.572667,94413.0,94412.0,0.3828271]
[1746509970479,0.573667,94413.0,94412.0,0.3828271]
[1746509970675,0.574667,94413.0,94412.0,0.3828271]
[1746509971173,0.573667,94413.0,94412.0,0.40459683]
[1746509971377,0.574667,94413.0,94412.0,0.40459683]
[1746509971577,0.213867,94413.0,94412.0,0.40459683]
[1746509971785,0.574667,94413.0,94412.0,0.40459683]
[1746509972679,0.574667,94413.0,94412.0,0.13976973]
[1746509972880,0.574667,94413.0,94412.0,0.35163893]
[1746509980389,0.574667,94413.0,94412.0,0.41303893]
[1746509982591,0.573667,94413.0,94412.0,0.41303893]
[1746509982786,0.574667,94413.0,94412.0,0.41303893]
[1746509985085,0.3628,94413.0,94412.0,0.41303893]
[1746509985792,0.3947,94413.0,94412.0,0.41303893]
[1746509988293,0.3937,94413.0,94412.0,0.41303893]
[1746509988590,0.3927,94413.0,94412.0,0.41303893]
[1746509990498,0.4245,94413.0,94412.0,0.41303893]
[1746509997703,0.636367,94413.0,94412.0,0.41303893]
[1746509998205,0.636367,94413.0,94412.0,0.38183893]
[1746510001209,0.637367,94413.0,94412.0,0.38183893]
[1746510001810,0.638367,94413.0,94412.0,0.38183893]
[1746510002808,0.639367,94413.0,94412.0,0.38183893]
[1746510014208,0.4275,94413.0,94412.0,0.38183893]
[1746510014412,0.3957,94413.0,94412.0,0.41273893]
[1746510016222,0.607567,94413.0,94412.0,0.41273893]
[1746510016411,0.3957,94413.0,94412.0,0.41273893]
[1746510018420,0.0349,94413.0,94412.0,0.41273893]
[1746510018924,0.003,94413.0,94412.0,0.87945892]
[1746510019110,0.003,94413.0,94412.0,0.77353893]
[1746510019311,0.003,94413.0,94412.0,2.37945892]
[1746510020019,0.002,94413.0,94412.0,2.37945892]
[1746510020425,0.06392,94432.0,94412.0,2.41758972]
[1746510020616,0.033,94433.0,94432.0,0.2118243]
[1746510021220,0.033,94433.0,94432.0,0.3298243]
[1746510021721,0.034,94433.0,94432.0,0.3298243]
[1746510021921,0.40795935,94433.0,94432.0,0.3298243]
[1746510022914,0.40895935,94433.0,94432.0,0.3298243]
[1746510026127,0.37595935,94433.0,94432.0,0.3298243]
[1746510027625,0.37495935,94433.0,94432.0,0.6906243]
[1746510028425,0.37495935,94433.0,94432.0,2.1906243]
[1746510028727,0.001,94433.0,94432.0,2.1906243]
[1746510029625,0.2117979,94444.0,94443.0,0.2117974]
[1746510030017,0.2117979,94444.0,94443.0,0.2446974]
[1746510030227,0.2117979,94444.0,94443.0,0.3626974]
[1746510030424,0.2448979,94444.0,94443.0,0.3626974]
[1746510031233,0.2478979,94444.0,94443.0,0.3626974]
[1746510033519,0.0361,94444.0,94443.0,0.3626974]
[1746510048338,0.0361,94444.0,94443.0,0.3928974]
[1746510050039,0.0361,94444.0,94443.0,0.4242974]
[1746510059253,0.003,94444.0,94443.0,0.4242974]
[1746510066152,0.003,94444.0,94443.0,0.3062974]
[1746510066354,0.0331,94444.0,94443.0,0.3062974]
[1746510081878,0.0331,94444.0,94443.0,0.2117974]
[1746510082171,0.0331,94444.0,94443.0,0.3297974]
[1746510085782,1.64102334,94463.0,94445.0,0.0529483]
[1746510085981,0.0302,94458.0,94449.0,0.5725862]
[1746510086279,0.0301,94457.0,94449.0,0.5725862]
[1746510087169,0.0025,94450.0,94449.0,0.5725862]
[1746510087369,0.0025,94450.0,94449.0,0.6041862]
[1746510087984,0.0015,94450.0,94449.0,0.6041862]
[1746510088278,0.0035,94450.0,94449.0,0.6041862]
[1746510088878,0.0055,94450.0,94449.0,0.6041862]
[1746510089180,0.0055,94450.0,94449.0,0.7221862]
[1746510090179,0.0055,94450.0,94449.0,0.6041862]
[1746510091784,0.0055,94450.0,94449.0,0.7100622]
[1746510092078,0.00237921,94450.0,94449.0,0.8280622]
[1746510092276,0.0319,94464.0,94449.0,0.8280622]
[1746510092277,0.0319,94464.0,94463.0,0.2117548]
[1746510093181,0.0319,94464.0,94463.0,0.2427548]
[1746510093373,0.0369,94464.0,94463.0,0.2427548]
[1746510093579,0.0734,94464.0,94463.0,0.2759548]
[1746510094888,0.0734,94464.0,94463.0,1.7759548]
[1746510095078,0.0734,94464.0,94463.0,1.8939548]
[1746510096088,0.0734,94464.0,94463.0,1.7759548]
[1746510098081,0.0415,94464.0,94463.0,1.7759548]
[1746510098285,0.0415,94464.0,94463.0,1.79328642]
[1746510105787,0.0395,94464.0,94463.0,1.79328642]
[1746510105991,0.0345,94464.0,94463.0,1.79328642]
[1746510106191,0.0365,94464.0,94463.0,1.79328642]
[1746510106709,0.0365,94464.0,94463.0,0.26228642]
[1746510106899,0.0998,94464.0,94463.0,0.26228642]
[1746510108599,0.0978,94464.0,94463.0,0.26228642]
[1746510109100,0.0958,94464.0,94463.0,0.22908642]
[1746510110299,0.0958,94464.0,94463.0,0.26218642]
[1746510110492,0.0958,94464.0,94463.0,0.29408642]
[1746510113905,0.0958,94464.0,94463.0,0.26098642]
[1746510130310,0.063,94464.0,94463.0,0.26098642]
[1746510130706,0.063,94464.0,94463.0,0.29188642]
[1746510151922,0.063,94464.0,94463.0,0.22908642]
[1746510152119,0.0955,94464.0,94463.0,0.22908642]
[1746510153126,0.2135,94464.0,94463.0,0.22908642]
[1746510167946,0.2135,94464.0,94463.0,1.72908642]
[1746510168149,0.0955,94464.0,94463.0,1.72908642]
[1746510169246,0.2135,94464.0,94463.0,1.72908642]
[1746510169548,0.2135,94464.0,94463.0,0.22908642]
[1746510170250,0.0955,94464.0,94463.0,0.22908642]
[1746510171251,0.2135,94464.0,94463.0,0.22908642]
[1746510174657,0.2135,94464.0,94463.0,0.26168642]
[1746510177259,0.0955,94464.0,94463.0,0.26168642]
[1746510178054,0.2135,94464.0,94463.0,0.26168642]
[1746510179158,0.0955,94464.0,94463.0,0.26168642]
[1746510185164,0.2135,94464.0,94463.0,0.26168642]
[1746510186163,0.0955,94464.0,94463.0,0.26168642]
[1746510188967,0.063,94464.0,94463.0,0.26168642]
[1746510192471,0.063,94464.0,94463.0,1.76168642]
[1746510197968,0.0325,94464.0,94463.0,1.76168642]
[1746510198565,0.001,94464.0,94463.0,1.76168642]